[Event "Late-Titled-Tuesday-Blitz-February-27-2024"]
[Site "Chess.com"]
[Date "2024.02.27"]
[Round "2"]
[White "Mikhail_Golubev"]
[Black "FabianoCaruana"]
[Result "1/2-1/2"]
[WhiteElo "2636"]
[BlackElo "3051"]
[TimeControl "180+1"]
[EndTime "14:17:01 PST"]
[Termination "Game drawn by repetition"]

1. e4 {[%clk 0:03:00.9]} 1... c5 {[%clk 0:03:00.5]} 2. Nf3 {[%clk 0:03:00.8]}
2... d6 {[%clk 0:03:01.2]} 3. d4 {[%clk 0:03:00.7]} 3... cxd4 {[%clk 0:03:01.9]}
4. Nxd4 {[%clk 0:03:00.9]} 4... Nf6 {[%clk 0:03:02.6]} 5. Nc3 {[%clk 0:03:00.8]}
5... a6 {[%clk 0:03:03.2]} 6. Bc4 {[%clk 0:03:00.4]} 6... e6 {[%clk 0:03:03]} 7.
O-O {[%clk 0:03:00.3]} 7... Be7 {[%clk 0:02:59]} 8. Bb3 {[%clk 0:03:00.1]} 8...
O-O {[%clk 0:02:58.7]} 9. f4 {[%clk 0:02:59.8]} 9... Nc6 {[%clk 0:02:55.3]} 10.
Be3 {[%clk 0:02:58.6]} 10... Bd7 {[%clk 0:02:53.8]} 11. f5 {[%clk 0:02:53.4]}
11... Nxd4 {[%clk 0:02:44.1]} 12. Bxd4 {[%clk 0:02:52.7]} 12... Rc8 {[%clk
0:02:43.6]} 13. Qd3 {[%clk 0:02:43.4]} 13... e5 {[%clk 0:02:34.9]} 14. Bf2
{[%clk 0:02:34.7]} 14... Qa5 {[%clk 0:02:00.9]} 15. Bh4 {[%clk 0:02:20.5]} 15...
Qc5+ {[%clk 0:01:15]} 16. Kh1 {[%clk 0:02:18.3]} 16... Qd4 {[%clk 0:01:15.7]}
17. Qf3 {[%clk 0:01:57.3]} 17... Bc6 {[%clk 0:01:08.6]} 18. Bxf6 {[%clk
0:01:56.4]} 18... Bxf6 {[%clk 0:01:08.5]} 19. Rad1 {[%clk 0:01:52.4]} 19... Qc5
{[%clk 0:01:04.6]} 20. Nd5 {[%clk 0:01:47.9]} 20... Bxd5 {[%clk 0:01:04.8]} 21.
Rxd5 {[%clk 0:01:47.9]} 21... Qb6 {[%clk 0:01:05.2]} 22. Rfd1 {[%clk 0:01:46.5]}
22... Rfd8 {[%clk 0:01:03.8]} 23. a4 {[%clk 0:01:23.1]} 23... Rd7 {[%clk
0:01:01.3]} 24. g3 {[%clk 0:01:07.1]} 24... h6 {[%clk 0:01:00.7]} 25. Kg2 {[%clk
0:01:05.9]} 25... a5 {[%clk 0:00:55.6]} 26. h4 {[%clk 0:01:03.2]} 26... Qd8
{[%clk 0:00:55]} 27. Kh3 {[%clk 0:01:02]} 27... b6 {[%clk 0:00:55.1]} 28. c3
{[%clk 0:00:53.5]} 28... Rc6 {[%clk 0:00:53]} 29. Qh5 {[%clk 0:00:52.2]} 29...
Rc5 {[%clk 0:00:47.3]} 30. Rxc5 {[%clk 0:00:44.4]} 30... bxc5 {[%clk 0:00:46.5]}
31. Rd2 {[%clk 0:00:20.3]} 31... Qb6 {[%clk 0:00:39.4]} 32. Bc4 {[%clk
0:00:17.3]} 32... Qc6 {[%clk 0:00:32.9]} 33. Bb5 {[%clk 0:00:14]} 33... Qxe4
{[%clk 0:00:33.1]} 34. Bxd7 {[%clk 0:00:13.6]} 34... Qh1+ {[%clk 0:00:33]} 35.
Rh2 {[%clk 0:00:13.3]} 35... Qf1+ {[%clk 0:00:32.2]} 36. Rg2 {[%clk 0:00:12.4]}
36... Qh1+ {[%clk 0:00:32.3]} 37. Rh2 {[%clk 0:00:12.7]} 37... Qf1+ {[%clk
0:00:32.4]} 38. Rg2 {[%clk 0:00:12.9]} 38... Qh1+ {[%clk 0:00:32]} 39. Rh2
{[%clk 0:00:13.2]} 1/2-1/2

[Event "Late-Titled-Tuesday-Blitz-February-27-2024"]
[Site "Chess.com"]
[Date "2024.02.27"]
[Round "2"]
[White "lilylg"]
[Black "MeisterJabo"]
[Result "0-1"]
[WhiteElo "2140"]
[BlackElo "2451"]
[TimeControl "180+1"]
[EndTime "14:17:01 PST"]
[Termination "MeisterJabo won on time"]

1. d4 {[%clk 0:03:00.9]} 1... Nf6 {[%clk 0:02:59.4]} 2. c4 {[%clk 0:03:00.6]}
2... e6 {[%clk 0:02:59.1]} 3. Nf3 {[%clk 0:03:00.2]} 3... d5 {[%clk 0:02:59.2]}
4. g3 {[%clk 0:02:59.7]} 4... Be7 {[%clk 0:02:59.4]} 5. Bg2 {[%clk 0:02:59.8]}
5... O-O {[%clk 0:03:00]} 6. Qc2 {[%clk 0:02:59.3]} 6... c6 {[%clk 0:02:57.9]}
7. O-O {[%clk 0:02:59.5]} 7... b6 {[%clk 0:02:57]} 8. Bf4 {[%clk 0:02:59.4]}
8... Nbd7 {[%clk 0:02:56.6]} 9. b3 {[%clk 0:02:58.9]} 9... Bb7 {[%clk 0:02:56]}
10. Nc3 {[%clk 0:02:58.7]} 10... Rc8 {[%clk 0:02:54.3]} 11. e4 {[%clk
0:02:50.8]} 11... dxe4 {[%clk 0:02:46.9]} 12. Nxe4 {[%clk 0:02:51.7]} 12... Nxe4
{[%clk 0:02:47.8]} 13. Qxe4 {[%clk 0:02:51.6]} 13... Nf6 {[%clk 0:02:48.6]} 14.
Qe2 {[%clk 0:02:50.4]} 14... c5 {[%clk 0:02:46.2]} 15. Rad1 {[%clk 0:02:47.1]}
15... Bxf3 {[%clk 0:02:39]} 16. Bxf3 {[%clk 0:02:46.8]} 16... cxd4 {[%clk
0:02:39.7]} 17. Be5 {[%clk 0:02:45.5]} 17... Bc5 {[%clk 0:02:37.7]} 18. Bb7
{[%clk 0:02:31]} 18... Rc7 {[%clk 0:02:30.6]} 19. Bxc7 {[%clk 0:02:30]} 19...
Qxc7 {[%clk 0:02:31.5]} 20. Bg2 {[%clk 0:02:29]} 20... a5 {[%clk 0:02:29.6]} 21.
Rd3 {[%clk 0:02:22.1]} 21... e5 {[%clk 0:02:20.1]} 22. f4 {[%clk 0:02:20.1]}
22... e4 {[%clk 0:02:14]} 23. Bxe4 {[%clk 0:01:57.7]} 23... Re8 {[%clk
0:02:12.3]} 24. Bxh7+ {[%clk 0:01:43.9]} 24... Kxh7 {[%clk 0:02:11.3]} 25. Qg2
{[%clk 0:01:43.9]} 25... Kg8 {[%clk 0:02:00.1]} 26. g4 {[%clk 0:01:28]} 26...
Re3 {[%clk 0:01:58]} 27. g5 {[%clk 0:00:21.8]} 27... Ne4 {[%clk 0:01:05]} 28.
Rxe3 {[%clk 0:00:03.4]} 28... dxe3 {[%clk 0:01:05.9]} 29. Qxe4 {[%clk
0:00:03.7]} 29... e2+ {[%clk 0:01:05.3]} 30. Kg2 {[%clk 0:00:03.6]} 30...
exf1=Q+ {[%clk 0:01:03.3]} 31. Kxf1 {[%clk 0:00:03.7]} 31... g6 {[%clk
0:00:47.6]} 32. f5 {[%clk 0:00:03.5]} 32... gxf5 {[%clk 0:00:39.3]} 33. Qxf5
{[%clk 0:00:02.1]} 33... Qxh2 {[%clk 0:00:36.2]} 0-1

[Event "Late-Titled-Tuesday-Blitz-February-27-2024"]
[Site "Chess.com"]
[Date "2024.02.27"]
[Round "2"]
[White "epiclord678"]
[Black "Hamisandwich"]
[Result "0-1"]
[WhiteElo "2391"]
[BlackElo "2761"]
[TimeControl "180+1"]
[EndTime "14:17:02 PST"]
[Termination "Hamisandwich won on time"]

1. e4 {[%clk 0:03:00.9]} 1... c5 {[%clk 0:02:56.4]} 2. Nf3 {[%clk 0:03:01]} 2...
d6 {[%clk 0:02:55.4]} 3. d4 {[%clk 0:03:01.2]} 3... cxd4 {[%clk 0:02:56.3]} 4.
Nxd4 {[%clk 0:03:01.7]} 4... Nf6 {[%clk 0:02:56.7]} 5. Nc3 {[%clk 0:03:02.2]}
5... a6 {[%clk 0:02:56.7]} 6. Be3 {[%clk 0:03:01.2]} 6... e5 {[%clk 0:02:56.5]}
7. Nb3 {[%clk 0:03:01.2]} 7... Be6 {[%clk 0:02:56]} 8. f3 {[%clk 0:03:01.4]}
8... Nbd7 {[%clk 0:02:54.4]} 9. Qd2 {[%clk 0:03:01.1]} 9... Qc7 {[%clk
0:02:49.9]} 10. g4 {[%clk 0:02:56.2]} 10... h6 {[%clk 0:02:47.8]} 11. O-O-O
{[%clk 0:02:50.9]} 11... b5 {[%clk 0:02:44.9]} 12. Kb1 {[%clk 0:02:49.3]} 12...
Rc8 {[%clk 0:02:37.6]} 13. h4 {[%clk 0:02:25.6]} 13... Nb6 {[%clk 0:02:36.8]}
14. a3 {[%clk 0:02:21.3]} 14... Nfd7 {[%clk 0:02:18.3]} 15. Nd5 {[%clk
0:01:34.7]} 15... Bxd5 {[%clk 0:02:14.9]} 16. exd5 {[%clk 0:01:35.3]} 16... Nc4
{[%clk 0:02:15.6]} 17. Bxc4 {[%clk 0:01:33.5]} 17... bxc4 {[%clk 0:02:16.5]} 18.
Na5 {[%clk 0:01:15.1]} 18... c3 {[%clk 0:02:16.7]} 19. Qxc3 {[%clk 0:01:15.4]}
19... Qxc3 {[%clk 0:02:17.5]} 20. bxc3 {[%clk 0:01:15.7]} 20... Rxc3 {[%clk
0:02:18.4]} 21. Rd3 {[%clk 0:01:12.3]} 21... Rxd3 {[%clk 0:02:17.6]} 22. cxd3
{[%clk 0:01:10.6]} 22... Nf6 {[%clk 0:02:18.5]} 23. Rc1 {[%clk 0:00:57.3]} 23...
Nxd5 {[%clk 0:02:18.6]} 24. Bd2 {[%clk 0:00:51]} 24... Kd7 {[%clk 0:02:18.7]}
25. Rc6 {[%clk 0:00:42]} 25... Be7 {[%clk 0:02:13.7]} 26. Rxa6 {[%clk
0:00:41.2]} 26... Bxh4 {[%clk 0:02:07.2]} 27. Ra7+ {[%clk 0:00:40.1]} 27... Ke6
{[%clk 0:02:06.5]} 28. Nc4 {[%clk 0:00:36.2]} 28... Be7 {[%clk 0:02:00.7]} 29.
a4 {[%clk 0:00:29.9]} 29... Rb8+ {[%clk 0:01:41.6]} 30. Kc2 {[%clk 0:00:28.4]}
30... Nb4+ {[%clk 0:01:21.2]} 31. Bxb4 {[%clk 0:00:27.4]} 31... Rxb4 {[%clk
0:01:22.1]} 32. a5 {[%clk 0:00:25.1]} 32... d5 {[%clk 0:01:20.6]} 33. Ra6+
{[%clk 0:00:21.3]} 33... Kd7 {[%clk 0:01:14.8]} 34. Ra7+ {[%clk 0:00:19.5]}
34... Ke8 {[%clk 0:01:05.6]} 35. Nb6 {[%clk 0:00:18.9]} 35... Rb5 {[%clk
0:00:49.8]} 36. Ra8+ {[%clk 0:00:09.6]} 36... Bd8 {[%clk 0:00:48.8]} 37. Nc8
{[%clk 0:00:07.9]} 37... Kd7 {[%clk 0:00:47.9]} 38. a6 {[%clk 0:00:06.1]} 38...
Rc5+ {[%clk 0:00:43.4]} 0-1

[Event "Late-Titled-Tuesday-Blitz-February-27-2024"]
[Site "Chess.com"]
[Date "2024.02.27"]
[Round "2"]
[White "Chessdude1987"]
[Black "GodzillaChessYoutube"]
[Result "0-1"]
[WhiteElo "2375"]
[BlackElo "2652"]
[TimeControl "180+1"]
[EndTime "14:17:03 PST"]
[Termination "GodzillaChessYoutube won by resignation"]

1. e4 {[%clk 0:03:00.9]} 1... c5 {[%clk 0:02:58.9]} 2. Nf3 {[%clk 0:03:00.6]}
2... e6 {[%clk 0:02:59.4]} 3. d4 {[%clk 0:02:58.5]} 3... cxd4 {[%clk 0:02:59.8]}
4. Nxd4 {[%clk 0:02:59.2]} 4... a6 {[%clk 0:03:00.1]} 5. Nc3 {[%clk 0:02:59.5]}
5... Qc7 {[%clk 0:02:59.9]} 6. g3 {[%clk 0:03:00]} 6... b5 {[%clk 0:02:56.7]} 7.
Bg2 {[%clk 0:02:59.7]} 7... Bb7 {[%clk 0:02:57.3]} 8. O-O {[%clk 0:02:58.9]}
8... Nc6 {[%clk 0:02:50.4]} 9. Re1 {[%clk 0:02:55.1]} 9... Nxd4 {[%clk
0:01:29.1]} 10. Qxd4 {[%clk 0:02:54.6]} 10... Rc8 {[%clk 0:01:22.3]} 11. Re2
{[%clk 0:02:28.3]} 11... b4 {[%clk 0:01:10.5]} 12. Nd5 {[%clk 0:02:23.3]} 12...
Qc5 {[%clk 0:01:10.2]} 13. Qd3 {[%clk 0:02:19.2]} 13... Nf6 {[%clk 0:00:38.7]}
14. Bg5 {[%clk 0:01:50.8]} 14... Ng4 {[%clk 0:00:25.3]} 15. Rd1 {[%clk
0:01:20.6]} 15... d6 {[%clk 0:00:25.2]} 16. Ne3 {[%clk 0:01:11.3]} 16... Ne5
{[%clk 0:00:24.2]} 17. Qb3 {[%clk 0:00:51.4]} 17... a5 {[%clk 0:00:21.3]} 18.
Bf4 {[%clk 0:00:37.5]} 18... Be7 {[%clk 0:00:17.3]} 19. Bxe5 {[%clk 0:00:36.5]}
19... dxe5 {[%clk 0:00:18.2]} 20. Red2 {[%clk 0:00:28]} 20... Bc6 {[%clk
0:00:18.7]} 21. Qc4 {[%clk 0:00:26.1]} 21... O-O {[%clk 0:00:16.9]} 22. Qxc5
{[%clk 0:00:23.9]} 22... Bxc5 {[%clk 0:00:17.8]} 23. Nc4 {[%clk 0:00:24.2]}
23... Bd4 {[%clk 0:00:17.1]} 24. Rd3 {[%clk 0:00:21.7]} 24... Bb5 {[%clk
0:00:16.7]} 25. b3 {[%clk 0:00:20.9]} 25... Bxc4 {[%clk 0:00:16.7]} 26. bxc4
{[%clk 0:00:21.3]} 26... Rxc4 {[%clk 0:00:17.3]} 27. R1d2 {[%clk 0:00:20.9]}
27... Rfc8 {[%clk 0:00:16.9]} 28. h4 {[%clk 0:00:14.9]} 28... Rxc2 {[%clk
0:00:16.9]} 29. Rxc2 {[%clk 0:00:14.7]} 29... Rxc2 {[%clk 0:00:17.8]} 30. Kh2
{[%clk 0:00:13.2]} 30... Rxa2 {[%clk 0:00:16.6]} 0-1

[Event "Late-Titled-Tuesday-Blitz-February-27-2024"]
[Site "Chess.com"]
[Date "2024.02.27"]
[Round "2"]
[White "BoltzMannS"]
[Black "Supelyel"]
[Result "1-0"]
[WhiteElo "2202"]
[BlackElo "2441"]
[TimeControl "180+1"]
[EndTime "14:17:03 PST"]
[Termination "BoltzMannS won by resignation"]

1. e4 {[%clk 0:03:00.9]} 1... d6 {[%clk 0:02:58.3]} 2. d4 {[%clk 0:03:01.1]}
2... Nf6 {[%clk 0:02:57.5]} 3. Nc3 {[%clk 0:03:00.4]} 3... e5 {[%clk 0:02:56.3]}
4. Nge2 {[%clk 0:02:59.9]} 4... Be7 {[%clk 0:02:51.4]} 5. h3 {[%clk 0:02:57.3]}
5... c6 {[%clk 0:02:47.3]} 6. Be3 {[%clk 0:02:55.6]} 6... O-O {[%clk 0:02:46.6]}
7. g4 {[%clk 0:02:55.1]} 7... b5 {[%clk 0:02:46.7]} 8. a3 {[%clk 0:02:49.2]}
8... a5 {[%clk 0:02:46.7]} 9. Bg2 {[%clk 0:02:49.2]} 9... Bb7 {[%clk 0:02:46.2]}
10. d5 {[%clk 0:02:46.2]} 10... cxd5 {[%clk 0:02:43.5]} 11. Nxd5 {[%clk
0:02:42.2]} 11... Nxd5 {[%clk 0:02:25.3]} 12. exd5 {[%clk 0:02:41.4]} 12... Nd7
{[%clk 0:02:25]} 13. O-O {[%clk 0:02:36.4]} 13... f5 {[%clk 0:02:22.3]} 14. gxf5
{[%clk 0:02:34.9]} 14... Rxf5 {[%clk 0:02:21.4]} 15. Ng3 {[%clk 0:02:35.8]}
15... Rf6 {[%clk 0:02:18.3]} 16. Qe2 {[%clk 0:02:15.1]} 16... Qc7 {[%clk
0:01:50.2]} 17. c3 {[%clk 0:02:14.1]} 17... Ba6 {[%clk 0:01:34.5]} 18. Rfe1
{[%clk 0:02:13.7]} 18... b4 {[%clk 0:01:34.2]} 19. Qd2 {[%clk 0:01:56.8]} 19...
bxc3 {[%clk 0:01:28.9]} 20. bxc3 {[%clk 0:01:57.7]} 20... Nb6 {[%clk 0:01:17.2]}
21. Ne4 {[%clk 0:01:53.2]} 21... Rg6 {[%clk 0:01:13.4]} 22. Bxb6 {[%clk
0:01:52.6]} 22... Qxb6 {[%clk 0:01:12.8]} 23. Rab1 {[%clk 0:01:52.5]} 23... Qc7
{[%clk 0:00:55]} 24. Ng3 {[%clk 0:01:51.5]} 24... Bg5 {[%clk 0:00:50]} 25. Qc2
{[%clk 0:01:48.8]} 25... Rf8 {[%clk 0:00:45]} 26. Be4 {[%clk 0:01:48.5]} 26...
Rh6 {[%clk 0:00:38.7]} 27. Bf5 {[%clk 0:01:46.9]} 27... g6 {[%clk 0:00:36]} 28.
Be6+ {[%clk 0:01:46.9]} 28... Kg7 {[%clk 0:00:36.3]} 29. Qa4 {[%clk 0:01:41.4]}
29... Rh4 {[%clk 0:00:31.5]} 30. Qc6 {[%clk 0:01:40.2]} 30... Bd8 {[%clk
0:00:26.4]} 31. Qxa6 {[%clk 0:01:39.3]} 31... Kh6 {[%clk 0:00:19]} 32. Qd3
{[%clk 0:01:31.2]} 32... Rhf4 {[%clk 0:00:18.6]} 33. Qe3 {[%clk 0:01:30.7]}
33... Qc4 {[%clk 0:00:17.7]} 34. Rb2 {[%clk 0:01:29.7]} 34... Bh4 {[%clk
0:00:16.6]} 35. Kg2 {[%clk 0:01:23]} 35... g5 {[%clk 0:00:16.7]} 36. Qe2 {[%clk
0:01:19.4]} 36... Rxf2+ {[%clk 0:00:15.5]} 37. Qxf2 {[%clk 0:01:16.6]} 37...
Rxf2+ {[%clk 0:00:16.4]} 38. Rxf2 {[%clk 0:01:17.3]} 38... Qxc3 {[%clk
0:00:15.2]} 39. Nf5+ {[%clk 0:01:13.6]} 39... Kg6 {[%clk 0:00:15.2]} 40. Nxh4+
{[%clk 0:01:13]} 40... gxh4 {[%clk 0:00:16.1]} 41. Ref1 {[%clk 0:01:13.6]} 41...
Qg3+ {[%clk 0:00:15.8]} 42. Kh1 {[%clk 0:01:14.2]} 42... Kh6 {[%clk 0:00:15.3]}
43. Rf6+ {[%clk 0:01:14.3]} 43... Kg7 {[%clk 0:00:15.5]} 44. Rf7+ {[%clk
0:01:14.6]} 44... Kh6 {[%clk 0:00:15.4]} 45. R1f6+ {[%clk 0:01:14.3]} 45... Kg5
{[%clk 0:00:15.6]} 46. Rf5+ {[%clk 0:01:12.4]} 46... Kg6 {[%clk 0:00:15.4]} 47.
R5f6+ {[%clk 0:01:09.1]} 47... Kg5 {[%clk 0:00:15.4]} 48. Rg7+ {[%clk
0:01:09.5]} 48... Kxf6 {[%clk 0:00:15.7]} 49. Rxg3 {[%clk 0:01:10.4]} 49... hxg3
{[%clk 0:00:16.2]} 50. Kg2 {[%clk 0:01:11.3]} 50... e4 {[%clk 0:00:16.1]} 51.
Kxg3 {[%clk 0:01:11.6]} 51... Ke5 {[%clk 0:00:17]} 52. Kf2 {[%clk 0:01:11]}
52... Kd4 {[%clk 0:00:16.9]} 53. Ke2 {[%clk 0:01:11.3]} 53... h6 {[%clk
0:00:17]} 54. a4 {[%clk 0:01:10.2]} 54... Kc4 {[%clk 0:00:16.2]} 55. Ke3 {[%clk
0:01:10.5]} 55... Kb4 {[%clk 0:00:16.9]} 56. Bd7 {[%clk 0:01:10.8]} 56... Kc5
{[%clk 0:00:17.3]} 57. Kxe4 {[%clk 0:01:10.4]} 1-0

[Event "Late-Titled-Tuesday-Blitz-February-27-2024"]
[Site "Chess.com"]
[Date "2024.02.27"]
[Round "2"]
[White "TheMagician"]
[Black "emeli_chess"]
[Result "0-1"]
[WhiteElo "2136"]
[BlackElo "2442"]
[TimeControl "180+1"]
[EndTime "14:17:03 PST"]
[Termination "emeli_chess won on time"]

1. c4 {[%clk 0:02:59]} 1... e5 {[%clk 0:02:56.5]} 2. Nc3 {[%clk 0:02:55.7]} 2...
d6 {[%clk 0:02:56.1]} 3. g3 {[%clk 0:02:54]} 3... f5 {[%clk 0:02:55.2]} 4. Bg2
{[%clk 0:02:53.3]} 4... Nf6 {[%clk 0:02:54.9]} 5. d3 {[%clk 0:02:52.3]} 5... Be7
{[%clk 0:02:53.6]} 6. Bg5 {[%clk 0:02:51.7]} 6... O-O {[%clk 0:02:53.3]} 7. e3
{[%clk 0:02:48.4]} 7... c6 {[%clk 0:02:50.9]} 8. Nge2 {[%clk 0:02:45.8]} 8... h6
{[%clk 0:02:50.3]} 9. Bxf6 {[%clk 0:02:44.8]} 9... Bxf6 {[%clk 0:02:50.7]} 10.
O-O {[%clk 0:02:44]} 10... Be6 {[%clk 0:02:49.1]} 11. b4 {[%clk 0:02:37.5]}
11... Nd7 {[%clk 0:02:47.1]} 12. b5 {[%clk 0:02:37]} 12... e4 {[%clk 0:02:23.7]}
13. bxc6 {[%clk 0:02:10.5]} 13... bxc6 {[%clk 0:02:22.8]} 14. Nd4 {[%clk
0:02:10.6]} 14... Bxd4 {[%clk 0:02:19.4]} 15. exd4 {[%clk 0:02:10.4]} 15... d5
{[%clk 0:02:19.4]} 16. dxe4 {[%clk 0:01:54.8]} 16... fxe4 {[%clk 0:02:17.7]} 17.
c5 {[%clk 0:01:52.3]} 17... Nf6 {[%clk 0:02:13.1]} 18. f3 {[%clk 0:01:41.9]}
18... exf3 {[%clk 0:02:10.4]} 19. Bxf3 {[%clk 0:01:36.8]} 19... Bh3 {[%clk
0:02:08.5]} 20. Re1 {[%clk 0:01:29.1]} 20... Qd7 {[%clk 0:02:04.2]} 21. Qd2
{[%clk 0:01:15.7]} 21... Rae8 {[%clk 0:01:54.2]} 22. Rxe8 {[%clk 0:01:11.5]}
22... Rxe8 {[%clk 0:01:51.9]} 23. Re1 {[%clk 0:01:10.7]} 23... Rxe1+ {[%clk
0:01:47.9]} 24. Qxe1 {[%clk 0:01:09.9]} 24... Qf5 {[%clk 0:01:45.9]} 25. Qe2
{[%clk 0:00:59.3]} 25... h5 {[%clk 0:01:33.8]} 26. Bg2 {[%clk 0:00:52.1]} 26...
Bxg2 {[%clk 0:01:30.8]} 27. Kxg2 {[%clk 0:00:50.9]} 27... h4 {[%clk 0:01:12.1]}
28. gxh4 {[%clk 0:00:36.1]} 28... Qf4 {[%clk 0:01:11.7]} 29. Qe6+ {[%clk
0:00:32.1]} 29... Kh7 {[%clk 0:01:08]} 30. Ne2 {[%clk 0:00:30.2]} 30... Qxh4
{[%clk 0:01:04.1]} 31. Qf5+ {[%clk 0:00:12.2]} 31... g6 {[%clk 0:01:00.8]} 32.
Qh3 {[%clk 0:00:11.9]} 32... Qxh3+ {[%clk 0:00:59.9]} 33. Kxh3 {[%clk
0:00:11.1]} 33... g5 {[%clk 0:00:56.4]} 34. Kg3 {[%clk 0:00:05.7]} 34... Kg6
{[%clk 0:00:56.5]} 35. h4 {[%clk 0:00:05.8]} 35... gxh4+ {[%clk 0:00:55.9]} 0-1

[Event "Late-Titled-Tuesday-Blitz-February-27-2024"]
[Site "Chess.com"]
[Date "2024.02.27"]
[Round "2"]
[White "NLLO777"]
[Black "ClauSanLuis"]
[Result "0-1"]
[WhiteElo "2504"]
[BlackElo "2363"]
[TimeControl "180+1"]
[EndTime "14:17:09 PST"]
[Termination "ClauSanLuis won by resignation"]

1. e4 {[%clk 0:03:00.9]} 1... c5 {[%clk 0:02:59.8]} 2. Nf3 {[%clk 0:03:01.2]}
2... Nc6 {[%clk 0:03:00.3]} 3. Bb5 {[%clk 0:03:01.2]} 3... e6 {[%clk 0:02:58.3]}
4. O-O {[%clk 0:03:00.9]} 4... Nge7 {[%clk 0:02:58.5]} 5. Re1 {[%clk 0:03:00.9]}
5... Ng6 {[%clk 0:02:57.5]} 6. c3 {[%clk 0:03:00]} 6... a6 {[%clk 0:02:51.4]} 7.
Bf1 {[%clk 0:02:59]} 7... d5 {[%clk 0:02:48.7]} 8. exd5 {[%clk 0:02:57.3]} 8...
Qxd5 {[%clk 0:02:47.6]} 9. d4 {[%clk 0:02:57.6]} 9... Be7 {[%clk 0:02:46.6]} 10.
c4 {[%clk 0:02:53.1]} 10... Qh5 {[%clk 0:02:32.2]} 11. d5 {[%clk 0:02:50.9]}
11... Nd4 {[%clk 0:02:32.3]} 12. Nxd4 {[%clk 0:02:48.2]} 12... Qxd1 {[%clk
0:02:31.9]} 13. Rxd1 {[%clk 0:02:49.1]} 13... cxd4 {[%clk 0:02:32.3]} 14. Rxd4
{[%clk 0:02:47.7]} 14... exd5 {[%clk 0:02:29.1]} 15. cxd5 {[%clk 0:02:45.5]}
15... O-O {[%clk 0:02:26.7]} 16. Nc3 {[%clk 0:02:45.2]} 16... Rd8 {[%clk
0:02:25.4]} 17. Be3 {[%clk 0:02:41.3]} 17... Bf5 {[%clk 0:02:12.9]} 18. Rad1
{[%clk 0:02:35.2]} 18... Bd6 {[%clk 0:02:08.2]} 19. f3 {[%clk 0:02:26.5]} 19...
Bc5 {[%clk 0:02:06.6]} 20. g4 {[%clk 0:02:12.7]} 20... Bxd4 {[%clk 0:02:05.4]}
21. Rxd4 {[%clk 0:02:13.6]} 21... Bd7 {[%clk 0:02:03.1]} 22. Kf2 {[%clk
0:02:10]} 22... f5 {[%clk 0:02:00.7]} 23. h3 {[%clk 0:02:05.6]} 23... fxg4
{[%clk 0:02:00.2]} 24. hxg4 {[%clk 0:02:06.5]} 24... Rf8 {[%clk 0:01:58.7]} 25.
Be2 {[%clk 0:02:02.9]} 25... Ne5 {[%clk 0:01:58.6]} 26. Kg3 {[%clk 0:02:03.3]}
26... Rae8 {[%clk 0:01:56.1]} 27. Bf2 {[%clk 0:02:00.8]} 27... b5 {[%clk
0:01:55.4]} 28. a3 {[%clk 0:01:59.4]} 28... g6 {[%clk 0:01:41.2]} 29. f4 {[%clk
0:01:59.2]} 29... Nf7 {[%clk 0:01:39.9]} 30. Bf3 {[%clk 0:01:49.2]} 30... Nd6
{[%clk 0:01:40.1]} 31. a4 {[%clk 0:01:36.3]} 31... h5 {[%clk 0:01:38.1]} 32.
axb5 {[%clk 0:01:31.9]} 32... axb5 {[%clk 0:01:37.6]} 33. Rb4 {[%clk 0:01:23.5]}
33... hxg4 {[%clk 0:01:36.8]} 34. Bxg4 {[%clk 0:01:24.4]} 34... Bxg4 {[%clk
0:01:36.5]} 35. Kxg4 {[%clk 0:01:25.3]} 35... Rb8 {[%clk 0:01:32.3]} 36. Bc5
{[%clk 0:01:24.9]} 36... Rf6 {[%clk 0:01:30.6]} 37. Bd4 {[%clk 0:01:21.2]} 37...
Rf5 {[%clk 0:01:27.7]} 38. Be5 {[%clk 0:01:21.3]} 38... Rb6 {[%clk 0:01:26.8]}
39. Na4 {[%clk 0:01:12.2]} 39... Ra6 {[%clk 0:01:22.4]} 40. Nc5 {[%clk
0:01:12.7]} 40... Rb6 {[%clk 0:01:20.9]} 41. Ne6 {[%clk 0:00:33.1]} 41... Nc4
{[%clk 0:01:16.6]} 42. Nd4 {[%clk 0:00:27]} 42... Nxe5+ {[%clk 0:01:13.7]} 43.
fxe5 {[%clk 0:00:25.1]} 43... Rxe5 {[%clk 0:01:13.9]} 44. Rxb5 {[%clk
0:00:14.8]} 44... Rxb5 {[%clk 0:01:13]} 45. Nxb5 {[%clk 0:00:15.7]} 45... Rxd5
{[%clk 0:01:13.5]} 46. Nc3 {[%clk 0:00:16.3]} 46... Rd2 {[%clk 0:01:12.2]} 47.
b3 {[%clk 0:00:15]} 47... Rb2 {[%clk 0:01:11.6]} 48. Nd5 {[%clk 0:00:12.5]}
48... Rxb3 {[%clk 0:01:10.4]} 49. Nf4 {[%clk 0:00:13.4]} 49... Kh7 {[%clk
0:01:09.4]} 50. Kg5 {[%clk 0:00:14.3]} 50... Rb5+ {[%clk 0:01:09.1]} 51. Kh4
{[%clk 0:00:13.9]} 51... g5+ {[%clk 0:01:08.3]} 52. Kg4 {[%clk 0:00:14.4]} 52...
gxf4 {[%clk 0:01:08.6]} 0-1

[Event "Late-Titled-Tuesday-Blitz-February-27-2024"]
[Site "Chess.com"]
[Date "2024.02.27"]
[Round "2"]
[White "LiemLe"]
[Black "AcostaPablo"]
[Result "1-0"]
[WhiteElo "3055"]
[BlackElo "2625"]
[TimeControl "180+1"]
[EndTime "14:17:10 PST"]
[Termination "LiemLe won on time"]

1. d4 {[%clk 0:03:00.9]} 1... Nf6 {[%clk 0:02:58.7]} 2. c4 {[%clk 0:03:00.9]}
2... e6 {[%clk 0:02:58.2]} 3. Nc3 {[%clk 0:03:01.1]} 3... Bb4 {[%clk 0:02:58]}
4. Nf3 {[%clk 0:03:00.5]} 4... O-O {[%clk 0:02:57.5]} 5. Bd2 {[%clk 0:02:59.5]}
5... d5 {[%clk 0:02:56.7]} 6. e3 {[%clk 0:02:58.8]} 6... Nbd7 {[%clk 0:02:53.1]}
7. Rc1 {[%clk 0:02:55.3]} 7... c6 {[%clk 0:02:51.2]} 8. Bd3 {[%clk 0:02:50.9]}
8... Re8 {[%clk 0:02:50.5]} 9. O-O {[%clk 0:02:48.7]} 9... Bxc3 {[%clk
0:02:44.8]} 10. Bxc3 {[%clk 0:02:49.6]} 10... Ne4 {[%clk 0:02:44.9]} 11. Bb4
{[%clk 0:02:29]} 11... f5 {[%clk 0:02:31.3]} 12. b3 {[%clk 0:02:19.9]} 12... Qf6
{[%clk 0:02:27.7]} 13. Ne1 {[%clk 0:02:17.3]} 13... a5 {[%clk 0:02:03.9]} 14.
Ba3 {[%clk 0:02:16.9]} 14... a4 {[%clk 0:01:54.7]} 15. b4 {[%clk 0:02:12.1]}
15... dxc4 {[%clk 0:01:54.8]} 16. Rxc4 {[%clk 0:02:11.7]} 16... Nb6 {[%clk
0:01:54.4]} 17. Rc2 {[%clk 0:02:09.1]} 17... Nd5 {[%clk 0:01:46.8]} 18. Nf3
{[%clk 0:02:06.2]} 18... Ng5 {[%clk 0:01:35.4]} 19. Ne5 {[%clk 0:01:57.9]} 19...
Nf7 {[%clk 0:01:34.6]} 20. Nf3 {[%clk 0:01:22]} 20... Bd7 {[%clk 0:01:26.6]} 21.
b5 {[%clk 0:01:19]} 21... cxb5 {[%clk 0:01:24.1]} 22. Qb1 {[%clk 0:01:19.1]}
22... Rec8 {[%clk 0:01:17.9]} 23. Rfc1 {[%clk 0:01:18.2]} 23... Qd8 {[%clk
0:01:14.2]} 24. Bxb5 {[%clk 0:01:16.5]} 24... Rxc2 {[%clk 0:01:11.3]} 25. Rxc2
{[%clk 0:01:15.3]} 25... Qb6 {[%clk 0:01:11.4]} 26. Rb2 {[%clk 0:01:01.6]} 26...
Bxb5 {[%clk 0:01:00.3]} 27. Rxb5 {[%clk 0:01:02.5]} 27... Qa6 {[%clk 0:00:56.1]}
28. Rxb7 {[%clk 0:00:57.7]} 28... h6 {[%clk 0:00:48.3]} 29. h3 {[%clk
0:00:35.6]} 29... Nc3 {[%clk 0:00:38.7]} 30. Qb2 {[%clk 0:00:35.8]} 30... Qd3
{[%clk 0:00:29.5]} 31. Rxf7 {[%clk 0:00:29.3]} 31... Ne2+ {[%clk 0:00:02.4]} 32.
Kh2 {[%clk 0:00:27.3]} 32... Re8 {[%clk 0:00:01.4]} 33. Qb7 {[%clk 0:00:25.2]}
1-0